fUST/lending_fUST_20250617
["ID","MTS","AMOUNT","RATE_DAILY","PERIOD"]
[366216900,1750127432674,-165.02813857,0.00022483,2]
[366216901,1750127432683,-500.0,0.000225,2]
[366216902,1750127432693,-500.0,0.000225,2]
[366216903,1750127432703,-264.96027553,0.000225,2]
[366216904,1750127432712,-500.0,0.000225,2]
[366216905,1750127432722,-500.0,0.000225,2]
[366216906,1750127432730,-500.0,0.000225,2]
[366216907,1750127432740,-500.0,0.000225,2]
[366216908,1750127432751,-183.83487319,0.000225,2]
[366216909,1750127432761,-395.18725345,0.000225,2]
[366216910,1750127432771,-260.48090113,0.000225,2]
[366216911,1750127432780,-4890.5350108,0.00022505,2]
[366216912,1750127432790,-1951.01568881,0.0002255,2]
[366216913,1750127432800,-500.0,0.0002265,2]
[366216914,1750127432810,-249.0,0.00022842,2]
[366216915,1750127432819,-420.0,0.00022842,2]
[366216916,1750127432829,-165.02813857,0.00022881,2]
[366216917,1750127432839,-1951.01568877,0.00022889,2]
[366216918,1750127432849,-289.4411311,0.00022946,2]
[366216919,1750127432859,-33826.34780417,0.00023,2]
[366216920,1750127432869,-1882.45619653,0.00023,2]
[366216921,1750127432881,-727.10796862,0.00023,2]
[366216922,1750127432893,-13077.74793849,0.00023,2]
[366216923,1750127432903,-158.34880165,0.00023084,2]
[366216924,1750127432912,-503.73758269,0.00023198,2]
[366216925,1750127432922,-501.67089625,0.000232,2]
[366216926,1750127432931,-503.70338164,0.000232,2]
[366216927,1750127432944,-500.0,0.000232,2]
[366216928,1750127432953,-500.607487,0.000232,2]
[366216929,1750127432963,-573.51667435,0.000232,2]
[366216930,1750127432972,-1951.01568877,0.00023227,2]
[366216931,1750127432982,-165.02813857,0.0002328,2]
[366216932,1750127432992,-2437.71,0.00023302,2]
[366216933,1750127433001,-600.0,0.00023314,2]
[366216934,1750127433011,-158.9615139,0.00023342,2]
[366216935,1750127433021,-158.9615139,0.00023342,2]
[366216936,1750127433035,-158.9615139,0.00023342,2]
[366216937,1750127433045,-309.776659,0.00023342,2]
[366216938,1750127433057,-500.0,0.00023343,2]
[366216939,1750127433067,-464.10445723,0.00023343,2]
[366216940,1750127433077,-57101.58315287,0.0002335,2]
[366216941,1750127433090,-366.52949069,0.0002335,2]
[366216942,1750127433103,-3239.51478402,0.0002335,2]
[366216943,1750127433115,-564.57674422,0.0002335,2]
[366216948,1750127438156,-155.02080594,0.00021998,2]
[366216949,1750127438167,-500.0,0.00021998,2]
[366216950,1750127438177,-500.0,0.00021998,2]
[366216951,1750127438187,-500.0,0.00021998,2]
[366216952,1750127438197,-211.82780286,0.00021999,2]
[366216953,1750127438209,-355.5926941,0.00021999,2]
[366216954,1750127438219,-567.42049696,0.00021999,2]
[366216955,1750127438229,-393.24026067,0.00021999,2]
[366216957,1750127438239,-567.42049696,0.00021999,2]
[366216959,1750127438249,-343.01483013,0.00021999,2]
[366216966,1750127438395,-224.40566683,0.00021999,2]
[366216968,1750127438407,-567.42049696,0.00021999,2]
[366216969,1750127438417,-567.42049696,0.00021999,2]
[366216970,1750127438427,-567.42049696,0.00021999,2]
[366216971,1750127438437,-567.42049696,0.00021999,2]
[366216972,1750127438447,-567.42049696,0.00021999,2]
[366216973,1750127438457,-567.42049696,0.00021999,2]
[366216974,1750127438467,-567.42049696,0.00021999,2]
[366216975,1750127438478,-567.42049696,0.00021999,2]
[366216976,1750127438488,-567.42049696,0.00021999,2]
[366216977,1750127438498,-567.42049696,0.00021999,2]
[366216978,1750127438508,-567.42049696,0.00021999,2]
[366216979,1750127438518,-567.42049696,0.00021999,2]
[366216980,1750127438528,-567.42049696,0.00021999,2]
[366216981,1750127438537,-567.42049696,0.00021999,2]
[366216982,1750127438547,-500.0,0.000225,2]
[366216983,1750127438557,-500.0,0.000225,2]
[366216984,1750127438567,-500.0,0.000225,2]
[366216985,1750127438577,-589.13012499,0.000225,2]
[366216986,1750127438587,-500.0,0.000225,2]
[366216987,1750127438596,-500.0,0.000225,2]
[366216988,1750127438606,-500.0,0.000225,2]
[366216989,1750127438615,-500.0,0.000225,2]
[366216990,1750127438625,-500.0,0.000225,2]
[366216991,1750127438635,-58494.84141386,0.0002335,2]
[366216992,1750127438645,-243.0,0.00023369,2]
[366216993,1750127438654,-502.77421012,0.00023373,2]
[366216994,1750127438663,-500.0,0.00023373,2]
[366216995,1750127438673,-1000.0,0.00023516,3]
[366216996,1750127438683,-1951.01568877,0.00023566,2]
[366216997,1750127438693,-153.1234548,0.00023611,2]
[366216998,1750127438703,-152.36125688,0.00023611,2]
[366216999,1750127438712,-152.79242028,0.00023611,2]
[366217000,1750127438722,-5000.0,0.00023612,2]
[366217001,1750127438732,-234.25958059,0.00023612,2]
[366217002,1750127438743,-207.4,0.00023612,2]
[366217003,1750127438752,-500.0,0.00023612,2]
[366217004,1750127438762,-500.0,0.00023612,2]
[366217005,1750127438773,-500.0,0.00023612,2]
[366217006,1750127438783,-500.0,0.00023612,2]
[366217007,1750127438792,-500.0,0.00023612,2]
[366217008,1750127438802,-500.0,0.00023612,2]
[366217009,1750127438812,-500.0,0.00023612,2]
[366217010,1750127438821,-500.0,0.00023612,2]
[366217011,1750127438831,-500.0,0.00023612,2]
[366217012,1750127438841,-500.0,0.00023612,2]
[366217013,1750127438851,-500.0,0.00023612,2]
[366217014,1750127438860,-500.0,0.00023612,2]
[366217015,1750127438870,-500.0,0.00023612,2]
[366217016,1750127438879,-500.0,0.00023612,2]
[366217017,1750127438888,-500.0,0.00023612,2]
[366217018,1750127438898,-500.0,0.00023612,2]
[366217019,1750127438907,-500.0,0.00023612,2]
[366217020,1750127438917,-500.0,0.00023612,2]
[366217021,1750127438926,-500.0,0.00023612,2]
[366217022,1750127438935,-500.0,0.00023612,2]
[366217023,1750127438945,-500.0,0.00023612,2]
[366217024,1750127438955,-500.0,0.00023612,2]
[366217025,1750127438964,-500.0,0.00023612,2]
[366217026,1750127438974,-500.0,0.00023612,2]
[366217027,1750127438984,-500.0,0.00023612,2]
[366217028,1750127438993,-514.42399439,0.00023612,2]
[366217029,1750127439003,-500.0,0.00023612,2]
[366217030,1750127439013,-500.0,0.00023612,2]
[366217031,1750127439026,-500.0,0.00023612,2]
[366217032,1750127439039,-500.0,0.00023612,2]
[366217033,1750127439048,-156.71109524,0.00023612,2]
[366217034,1750127439058,-500.0,0.00023612,2]
[366217035,1750127439068,-2524.87,0.00023626,4]
[366217036,1750127439078,-500.0,0.00023639,2]
[366217037,1750127439087,-500.0,0.00023667,2]
[366217038,1750127439097,-165.02813857,0.00023678,2]
[366217039,1750127439108,-500.0,0.00023694,2]
[366217040,1750127439118,-2000.0,0.00023721,3]
[366217041,1750127439128,-493.82741622,0.00023722,2]
[366217042,1750127439137,-525.17942262,0.00023748,2]
[366217043,1750127439146,-173.32406818,0.00023753,2]
[366217044,1750127439156,-151.0,0.00023758,7]
[366217045,1750127439165,-2499.21202192,0.00023788,3]
[366217046,1750127439175,-151.0,0.000238,7]
[366217047,1750127439184,-835.82910252,0.00023817,3]
[366217048,1750127439194,-158.360643,0.00023819,7]
[366217049,1750127439203,-3000.0,0.00023862,3]
[366217050,1750127439213,-508.34097572,0.00023891,2]
[366217051,1750127439223,-199.91749306,0.000239,2]
[366217052,1750127439232,-1951.01568877,0.00023904,2]
[366217053,1750127439242,-1000.0,0.00023921,2]
[366217054,1750127439252,-4000.0,0.00023927,4]
[366217055,1750127439261,-213.39869953,0.00023947,3]
[366217056,1750127439270,-424.62582665,0.00023947,3]
[366217057,1750127439280,-600.0,0.0002396,2]
[366217058,1750127439290,-377.2474343,0.00024,2]
[366217059,1750127439299,-429511.75188849,0.00024,2]
[366217060,1750127439309,-424.62582665,0.00024,7]
[366217061,1750127439318,-168.0,0.00024004,2]
[366217062,1750127439328,-171.84232739,0.00024055,2]
[366217063,1750127439337,-171.84232739,0.00024055,2]
[366217064,1750127439348,-173.32406818,0.00024055,2]
[366217065,1750127439358,-165.02813857,0.00024077,2]
[366217066,1750127439368,-2169.849,0.00024116,2]
[366217067,1750127439379,-655.768,0.00024116,2]
[366217068,1750127439388,-406.0,0.00024116,2]
[366217069,1750127439398,-968.011,0.00024116,2]
[366217070,1750127439407,-153.0,0.00024137,2]
[366217071,1750127439418,-5000.0,0.0002416,2]
[366217072,1750127439428,-601.60099655,0.00024209,2]
[366217073,1750127439437,-5029.61244942,0.00024297,2]
[366217074,1750127439447,-5000.0,0.00024297,2]
[366217075,1750127439457,-5000.0,0.00024297,2]
[366217076,1750127439467,-482.14,0.000243,2]
[366217077,1750127439477,-168.0,0.00024373,2]
[366217078,1750127439486,-154.4729644,0.00024411,2]
[366217079,1750127439496,-374.585705,0.00024432,3]
[366217080,1750127439505,-1500.0,0.00024468,2]
[366217081,1750127439515,-214.0953081,0.00024474,7]
[366217082,1750127439525,-165.02813857,0.00024475,2]
[366217083,1750127439535,-266.95585233,0.00024557,3]
[366217084,1750127439545,-9640.12080022,0.00024557,2]
[366217085,1750127439554,-168.0,0.00024558,2]
[366217086,1750127439564,-1727.88,0.00024641,3]
[366217087,1750127439574,-863.94,0.00024641,3]
[366217089,1750127439583,-431.97,0.00024641,3]
[366217092,1750127439593,-215.99,0.00024641,3]
[366217093,1750127439602,-647.98,0.00024641,3]
[366217094,1750127439611,-35705.91005568,0.00024651,2]
[366217095,1750127439621,-21557.57202375,0.00024651,2]
[366217096,1750127439630,-1530.3962487,0.00024651,2]
[366217097,1750127439640,-160.0,0.00024655,2]
[366217098,1750127439650,-501.39102235,0.00024657,2]
[366217099,1750127439660,-530.76142597,0.00024657,2]
[366217100,1750127439670,-460.0,0.00024657,6]
[366217101,1750127439680,-460.0,0.00024657,6]
[366217102,1750127439694,-460.0,0.00024657,6]
[366217103,1750127439707,-460.0,0.00024657,6]
[366217104,1750127439721,-318.87694228,0.00024657,6]
[366217105,1750127439734,-429.50299949,0.00024657,6]
[366217107,1750127439747,-427.82461983,0.00024657,6]
[366217108,1750127439759,-434.12822346,0.00024657,6]
[366217109,1750127439770,-425.78130578,0.00024657,6]
[366217110,1750127439781,-273.10019851,0.00024657,6]
[366217111,1750127439793,-466.02344442,0.00024657,6]
[366217112,1750127439806,-460.0,0.00024657,6]
[366217114,1750127439818,-478.85388198,0.00024657,6]
[366217115,1750127439831,-514.73725956,0.00024657,2]
[366217116,1750127439843,-151.0,0.00024657,7]
[366217117,1750127439855,-151.0,0.00024657,7]
[366217118,1750127439867,-151.0,0.00024657,7]
[366217119,1750127439880,-151.0,0.00024657,7]
[366217120,1750127439892,-163.455046,0.00024657,7]
[366217121,1750127439904,-151.0,0.00024657,7]
[366217124,1750127439915,-460.0,0.00024657,6]
[366217126,1750127439927,-460.0,0.00024657,6]
[366217128,1750127439940,-460.0,0.00024657,6]
[366217130,1750127439951,-460.0,0.00024657,6]
[366217133,1750127439965,-460.0,0.00024657,6]
[366217135,1750127439977,-460.0,0.00024657,6]
[366217137,1750127439989,-460.0,0.00024657,6]
[366217139,1750127440000,-460.0,0.00024657,6]
[366217141,1750127440012,-351.55692138,0.00024657,6]
[366217143,1750127440025,-476.70879104,0.00024657,6]
[366217145,1750127440040,-460.0,0.00024657,6]
[366217148,1750127440052,-452.20327833,0.00024657,6]
[366217150,1750127440064,-209.08111051,0.00024657,6]
[366217152,1750127440079,-460.0,0.00024657,6]
[366217154,1750127440091,-460.0,0.00024657,6]
[366217156,1750127440103,-460.0,0.00024657,6]
[366217159,1750127440116,-323.86866439,0.00024657,6]
[366217161,1750127440129,-400.36776778,0.00024657,6]
[366217163,1750127440140,-460.0,0.00024657,6]
[366217165,1750127440151,-489.10640052,0.00024657,6]
[366217167,1750127440161,-359.20174956,0.00024657,6]
[366217169,1750127440172,-460.0,0.00024657,6]
[366217172,1750127440184,-488.71128935,0.00024657,6]
[366217174,1750127440196,-460.0,0.00024657,6]
[366217176,1750127440208,-342.30135903,0.00024657,6]
[366217178,1750127440220,-468.35225967,0.00024657,6]
[366217180,1750127440233,-460.0,0.00024657,6]
[366217183,1750127440245,-485.03197491,0.00024657,6]
[366217185,1750127440258,-460.0,0.00024657,6]
[366217187,1750127440269,-460.0,0.00024657,6]
[366217189,1750127440280,-460.0,0.00024657,6]
[366217191,1750127440294,-460.0,0.00024657,6]
[366217193,1750127440306,-274.37307313,0.00024657,6]
[366217196,1750127440319,-460.0,0.00024657,6]
[366217199,1750127440331,-459.99999999,0.00024657,6]
[366217202,1750127440343,-460.0,0.00024657,6]
[366217205,1750127440357,-460.0,0.00024657,6]
[366217209,1750127440369,-460.0,0.00024657,6]
[366217213,1750127440380,-460.0,0.00024657,6]
[366217215,1750127440391,-460.0,0.00024657,6]
[366217217,1750127440401,-460.0,0.00024657,6]
[366217219,1750127440411,-460.0,0.00024657,6]
[366217221,1750127440421,-460.0,0.00024657,6]
[366217223,1750127440432,-460.0,0.00024657,6]
[366217225,1750127440443,-460.0,0.00024657,6]
[366217227,1750127440454,-460.0,0.00024657,6]
[366217229,1750127440467,-460.0,0.00024657,6]
[366217232,1750127440479,-460.0,0.00024657,6]
[366217234,1750127440491,-460.0,0.00024657,6]
[366217236,1750127440503,-460.0,0.00024657,6]
[366217238,1750127440515,-460.0,0.00024657,6]
[366217241,1750127440527,-460.0,0.00024657,6]
[366217243,1750127440537,-460.0,0.00024657,6]
[366217245,1750127440549,-460.0,0.00024657,6]
[366217247,1750127440560,-460.0,0.00024657,6]
[366217249,1750127440570,-460.0,0.00024657,6]
[366217251,1750127440582,-460.0,0.00024657,6]
[366217254,1750127440594,-460.0,0.00024657,6]
[366217256,1750127440607,-460.0,0.00024657,6]
[366217258,1750127440617,-460.0,0.00024657,6]
[366217260,1750127440628,-203.3417291,0.00024657,6]
[366217262,1750127440638,-460.0,0.00024657,6]
[366217264,1750127440648,-460.0,0.00024657,6]
[366217266,1750127440659,-460.0,0.00024657,6]
[366217268,1750127440670,-460.0,0.00024657,6]
[366217269,1750127440682,-460.0,0.00024657,6]
[366217271,1750127440692,-460.0,0.00024657,6]
[366217273,1750127440703,-460.0,0.00024657,6]
[366217276,1750127440713,-453.04791707,0.00024657,6]
[366217277,1750127440724,-460.0,0.00024657,6]
[366217279,1750127440735,-460.0,0.00024657,6]
[366217282,1750127440746,-460.0,0.00024657,6]
[366217284,1750127440757,-460.0,0.00024657,6]
[366217286,1750127440769,-460.0,0.00024657,6]
[366217288,1750127440780,-460.0,0.00024657,6]
[366217290,1750127440792,-489.01426652,0.00024657,6]
[366217292,1750127440803,-460.0,0.00024657,6]
[366217294,1750127440814,-460.0,0.00024657,6]
[366217296,1750127440825,-460.0,0.00024657,6]
[366217299,1750127440836,-460.0,0.00024657,6]
[366217301,1750127440847,-460.0,0.00024657,6]
[366217303,1750127440858,-460.0,0.00024657,6]
[366217305,1750127440869,-460.0,0.00024657,6]
[366217307,1750127440880,-460.0,0.00024657,6]
[366217308,1750127440891,-460.0,0.00024657,6]
[366217309,1750127440902,-460.0,0.00024657,6]
[366217310,1750127440912,-540.44991111,0.00024657,6]
[366217311,1750127440923,-460.0,0.00024657,6]
[366217312,1750127440934,-460.0,0.00024657,6]
[366217314,1750127440946,-460.0,0.00024657,6]
[366217315,1750127440957,-460.0,0.00024657,6]
[366217317,1750127440968,-378.22539491,0.00024657,6]
[366217319,1750127440980,-775.72,0.00024657,2]
[366217321,1750127440991,-775.72,0.00024657,2]
[366217324,1750127441002,-775.72,0.00024657,2]
[366217326,1750127441012,-775.72,0.00024657,2]
[366217328,1750127441024,-775.72,0.00024657,2]
[366217330,1750127441039,-775.72,0.00024657,2]
[366217332,1750127441050,-775.72,0.00024657,2]
[366217335,1750127441062,-775.72,0.00024657,2]
[366217337,1750127441074,-775.72,0.00024657,2]
[366217339,1750127441085,-775.72,0.00024657,2]
[366217341,1750127441096,-775.72,0.00024657,2]
[366217343,1750127441107,-775.72,0.00024657,2]
[366217345,1750127441119,-775.72,0.00024657,2]
[366217348,1750127441130,-775.72,0.00024657,2]
[366217350,1750127441141,-775.72,0.00024657,2]
[366217352,1750127441152,-460.0,0.00024657,6]
[366217354,1750127441163,-460.0,0.00024657,6]
[366217356,1750127441174,-460.0,0.00024657,6]
[366217358,1750127441185,-460.0,0.00024657,6]
[366217376,1750127441341,-460.0,0.00024657,6]
[366217379,1750127441361,-460.0,0.00024657,6]
[366217382,1750127441373,-460.0,0.00024657,6]
[366217384,1750127441382,-460.0,0.00024657,6]
[366217386,1750127441391,-460.0,0.00024657,6]
[366217388,1750127441400,-444.09495345,0.00024657,6]
[366217390,1750127441410,-460.0,0.00024657,6]
[366217392,1750127441420,-460.0,0.00024657,6]
[366217394,1750127441429,-460.0,0.00024657,6]
[366217396,1750127441439,-460.0,0.00024657,6]
[366217398,1750127441450,-460.0,0.00024657,6]
[366217400,1750127441459,-460.0,0.00024657,6]
[366217402,1750127441469,-460.0,0.00024657,6]
[366217404,1750127441478,-460.0,0.00024657,6]
[366217406,1750127441488,-460.0,0.00024657,6]
[366217408,1750127441497,-460.0,0.00024657,6]
[366217410,1750127441507,-460.0,0.00024657,6]
[366217412,1750127441518,-460.0,0.00024657,6]
[366217414,1750127441528,-460.0,0.00024657,6]
[366217416,1750127441538,-460.0,0.00024657,6]
[366217418,1750127441548,-492.81335136,0.00024657,6]
[366217420,1750127441558,-460.0,0.00024657,6]
[366217422,1750127441568,-460.0,0.00024657,6]
[366217424,1750127441577,-460.0,0.00024657,6]
[366217426,1750127441587,-460.0,0.00024657,6]
[366217428,1750127441596,-460.0,0.00024657,6]
[366217430,1750127441606,-922.09,0.00024657,6]
[366217432,1750127441615,-922.09,0.00024657,6]
[366217434,1750127441625,-460.0,0.00024657,6]
[366217436,1750127441634,-922.09,0.00024657,6]
[366217438,1750127441644,-460.0,0.00024657,6]
[366217440,1750127441654,-922.09,0.00024657,6]
[366217442,1750127441664,-460.0,0.00024657,6]
[366217444,1750127441673,-922.09,0.00024657,6]
[366217446,1750127441682,-460.0,0.00024657,6]
[366217448,1750127441691,-922.09,0.00024657,6]
[366217450,1750127441702,-460.0,0.00024657,6]
[366217452,1750127441711,-922.09,0.00024657,6]
[366217454,1750127441721,-336.06062645,0.00024657,6]
[366217456,1750127441731,-922.09,0.00024657,6]
[366217458,1750127441742,-922.09,0.00024657,6]
[366217460,1750127441751,-922.09,0.00024657,6]
[366217462,1750127441761,-922.09,0.00024657,6]
[366217464,1750127441771,-922.09,0.00024657,6]
[366217466,1750127441781,-922.09,0.00024657,6]
[366217468,1750127441791,-922.09,0.00024657,6]
[366217470,1750127441800,-922.09,0.00024657,6]
[366217472,1750127441809,-922.09,0.00024657,6]
[366217474,1750127441819,-922.09,0.00024657,6]
[366217476,1750127441828,-922.09,0.00024657,6]
[366217478,1750127441838,-460.0,0.00024657,6]
[366217480,1750127441848,-465.48591107,0.00024657,6]
[366217482,1750127441858,-704.94,0.00024657,6]
[366217484,1750127441867,-704.94,0.00024657,6]
[366217486,1750127441877,-704.94,0.00024657,6]
[366217488,1750127441887,-704.94,0.00024657,6]
[366217490,1750127441896,-704.94,0.00024657,6]
[366217492,1750127441906,-500.0,0.00024657,6]
[366217495,1750127441916,-704.94,0.00024657,6]
[366217496,1750127441927,-481.29216017,0.00024657,6]
[366217498,1750127441937,-500.0,0.00024657,6]
[366217500,1750127441946,-704.94,0.00024657,6]
[366217503,1750127441956,-266.54224295,0.00024657,6]
[366217504,1750127441966,-704.94,0.00024657,6]
[366217507,1750127441976,-704.94,0.00024657,6]
[366217509,1750127441985,-704.94,0.00024657,6]
[366217511,1750127441994,-704.94,0.00024657,6]
[366217512,1750127442004,-704.94,0.00024657,6]
[366217514,1750127442013,-704.94,0.00024657,6]
[366217516,1750127442024,-704.94,0.00024657,6]
[366217518,1750127442035,-704.94,0.00024657,6]
[366217520,1750127442045,-704.94,0.00024657,6]
[366217522,1750127442055,-704.94,0.00024657,6]
[366217524,1750127442065,-704.94,0.00024657,6]
[366217526,1750127442075,-460.0,0.00024657,6]
[366217528,1750127442084,-460.0,0.00024657,6]
[366217530,1750127442094,-460.0,0.00024657,6]
[366217532,1750127442105,-567.3704264,0.00024657,6]
[366217535,1750127442115,-1578.27,0.00024657,6]
[366217537,1750127442127,-1578.27,0.00024657,6]
[366217539,1750127442137,-1578.27,0.00024657,6]
[366217541,1750127442147,-1578.27,0.00024657,6]
[366217543,1750127442157,-1578.27,0.00024657,6]
[366217545,1750127442166,-1578.27,0.00024657,6]
[366217547,1750127442176,-460.0,0.00024657,6]
[366217549,1750127442186,-1578.27,0.00024657,6]
[366217551,1750127442196,-300.62423195,0.00024657,6]
[366217553,1750127442206,-1578.27,0.00024657,6]
[366217555,1750127442216,-1578.27,0.00024657,6]
[366217557,1750127442225,-1578.27,0.00024657,6]
[366217559,1750127442235,-1578.27,0.00024657,6]
[366217561,1750127442245,-1578.27,0.00024657,6]
[366217563,1750127442255,-1578.27,0.00024657,6]
[366217565,1750127442265,-1578.27,0.00024657,6]
[366217567,1750127442276,-1578.27,0.00024657,6]
[366217569,1750127442285,-1578.27,0.00024657,6]
[366217571,1750127442295,-460.0,0.00024657,6]
[366217573,1750127442304,-1578.27,0.00024657,6]
[366217575,1750127442317,-460.0,0.00024657,6]
[366217578,1750127442327,-460.0,0.00024657,6]
[366217580,1750127442336,-460.0,0.00024657,6]
[366217582,1750127442345,-460.0,0.00024657,6]
[366217584,1750127442355,-460.0,0.00024657,6]
[366217586,1750127442365,-460.0,0.00024657,6]
[366217588,1750127442374,-460.0,0.00024657,6]
[366217590,1750127442384,-460.0,0.00024657,6]
[366217592,1750127442394,-367.90532258,0.00024657,6]
[366217593,1750127442403,-460.0,0.00024657,6]
[366217594,1750127442413,-460.0,0.00024657,6]
[366217596,1750127442422,-460.0,0.00024657,6]
[366217598,1750127442431,-188.41349602,0.00024657,6]
[366217600,1750127442441,-882.81,0.00024657,6]
[366217602,1750127442451,-882.81,0.00024657,6]
[366217603,1750127442460,-882.81,0.00024657,6]
[366217604,1750127442470,-882.81,0.00024657,6]
[366217606,1750127442480,-882.81,0.00024657,6]
[366217608,1750127442490,-882.81,0.00024657,6]
[366217610,1750127442499,-882.81,0.00024657,6]
[366217612,1750127442509,-882.81,0.00024657,6]
[366217614,1750127442519,-882.81,0.00024657,6]
[366217616,1750127442528,-882.81,0.00024657,6]
[366217618,1750127442538,-882.81,0.00024657,6]
[366217620,1750127442548,-882.81,0.00024657,6]
[366217622,1750127442557,-882.81,0.00024657,6]
[366217624,1750127442566,-882.81,0.00024657,6]
[366217626,1750127442576,-882.81,0.00024657,6]
[366217628,1750127442585,-882.81,0.00024657,6]
[366217630,1750127442595,-882.81,0.00024657,6]
[366217633,1750127442605,-882.81,0.00024657,6]
[366217635,1750127442615,-592.81226573,0.00024657,6]
[366217637,1750127442625,-460.0,0.00024657,6]
[366217639,1750127442636,-463.07693698,0.00024657,6]
[366217641,1750127442646,-516.94640837,0.00024657,7]
[366217643,1750127442656,-821.28,0.00024657,6]
[366217646,1750127442666,-821.28,0.00024657,6]
[366217647,1750127442676,-821.28,0.00024657,6]
[366217650,1750127442686,-821.28,0.00024657,6]
[366217653,1750127442695,-821.28,0.00024657,6]
[366217655,1750127442706,-821.28,0.00024657,6]
[366217657,1750127442716,-821.28,0.00024657,6]
[366217659,1750127442726,-821.28,0.00024657,6]
[366217662,1750127442736,-821.28,0.00024657,6]
[366217663,1750127442745,-821.28,0.00024657,6]
[366217665,1750127442755,-821.28,0.00024657,6]
[366217667,1750127442765,-417.2979077,0.00024657,6]
[366217669,1750127442775,-821.28,0.00024657,6]
[366217671,1750127442786,-821.28,0.00024657,6]
[366217673,1750127442795,-821.28,0.00024657,6]
[366217676,1750127442806,-821.28,0.00024657,6]
[366217678,1750127442815,-821.28,0.00024657,6]
[366217680,1750127442826,-821.28,0.00024657,6]
[366217682,1750127442836,-821.28,0.00024657,6]
[366217684,1750127442847,-460.0,0.00024657,6]
[366217686,1750127442856,-460.0,0.00024657,6]
[366217688,1750127442865,-460.0,0.00024657,6]
[366217689,1750127442875,-460.0,0.00024657,6]
[366217691,1750127442885,-460.0,0.00024657,6]
[366217693,1750127442895,-460.0,0.00024657,6]
[366217695,1750127442905,-460.0,0.00024657,6]
[366217697,1750127442915,-460.0,0.00024657,6]
[366217699,1750127442925,-460.0,0.00024657,6]
[366217701,1750127442934,-460.0,0.00024657,6]
[366217704,1750127442943,-460.0,0.00024657,6]
[366217707,1750127442953,-460.0,0.00024657,6]
[366217709,1750127442962,-460.0,0.00024657,6]
[366217711,1750127442972,-460.0,0.00024657,6]
[366217713,1750127442981,-460.0,0.00024657,6]
[366217714,1750127442991,-460.0,0.00024657,6]
[366217717,1750127443000,-460.0,0.00024657,6]
[366217718,1750127443010,-460.0,0.00024657,6]
[366217721,1750127443020,-460.0,0.00024657,6]
[366217723,1750127443032,-460.0,0.00024657,6]
[366217725,1750127443042,-460.0,0.00024657,6]
[366217727,1750127443051,-460.0,0.00024657,6]
[366217729,1750127443061,-166.89101002,0.00024657,6]
[366217731,1750127443071,-460.0,0.00024657,6]
[366217733,1750127443080,-460.0,0.00024657,6]
[366217735,1750127443090,-460.0,0.00024657,6]
[366217736,1750127443100,-460.0,0.00024657,6]
[366217738,1750127443112,-484.32854604,0.00024657,6]
[366217740,1750127443123,-460.0,0.00024657,6]
[366217743,1750127443132,-600.0,0.00024657,6]
[366217745,1750127443142,-460.0,0.00024657,6]
[366217746,1750127443152,-460.0,0.00024657,6]
[366217749,1750127443162,-460.0,0.00024657,6]